fUSD/lending_fUSD_20251112
["ID","MTS","AMOUNT","RATE_DAILY","PERIOD"]
[393764902,1762969860292,-500.0,0.00040411,20]
[393764903,1762969860301,-174.85,0.00040411,20]
[393764904,1762969860311,-528.4,0.00040411,20]
[393764905,1762969860321,-500.0,0.00040411,20]
[393764906,1762969860330,-500.0,0.00040411,20]
[393764907,1762969860340,-500.0,0.00040411,20]
[393764908,1762969860349,-500.0,0.00040411,20]
[393764909,1762969860358,-500.0,0.00040411,20]
[393764910,1762969860369,-482.97465042,0.00040411,20]
[393764911,1762969860378,-109816.28704156,0.00040411,29]
[393764912,1762969860387,-1000.0,0.00040412,30]
[393764913,1762969860397,-1004.91939236,0.00040412,30]
[393764914,1762969860406,-291.91807466,0.00040412,30]
[393764915,1762969860415,-291.91807466,0.00040412,30]
[393764916,1762969860424,-841799.69596328,0.00040412,7]
[393764917,1762969860632,-3192.9,0.00040412,7]
[393764918,1762969860644,-1708.29453559,0.00040412,7]
[393764919,1762969860662,-80989.99999987,0.00040412,7]
[393764920,1762969860672,-4406.99722331,0.00040412,7]
[393764921,1762969860683,-4182.21263243,0.00040412,7]
[393764922,1762969860694,-254500.0,0.00040412,7]
[393764923,1762969860738,-207.27052744,0.00040025,2]
[393764924,1762969860747,-2240.21046408,0.00040412,7]
[393764925,1762969860779,-23676.76195442,0.00040412,7]
[393764926,1762969860794,-21883.33483352,0.00040412,7]
[393764927,1762969860805,-3480.18543112,0.00040412,7]
[393764928,1762969860817,-511.16094919,0.00040412,7]
[393764929,1762969860828,-31696.4,0.00040412,7]
[393764930,1762969860839,-5543.08830285,0.00040412,7]
[393764931,1762969860850,-1801.04349221,0.00040412,7]
[393764932,1762969860861,-1740.23328001,0.00040412,7]
[393764933,1762969860876,-846.00432761,0.00040412,7]
[393764934,1762969860901,-35543.34967496,0.00040412,7]
[393764935,1762969860914,-35278.97941349,0.00040412,7]
[393764936,1762969860925,-3307.21390257,0.00040412,7]
[393764937,1762969860936,-1330.08239876,0.00040412,7]
[393764938,1762969860947,-5253.41323589,0.00040412,7]
[393764939,1762969860960,-271696.16204672,0.00040412,7]
[393764940,1762969860970,-185.43212838,0.00040412,2]
[393764941,1762969860979,-255.46754685,0.00040412,2]
[393764942,1762969860989,-397.68668857,0.00040412,2]
[393764943,1762969860999,-1210.0,0.00040412,2]
[393764944,1762969861009,-714.98984362,0.00040412,2]
[393764945,1762969861018,-368.16886884,0.00040412,2]
[393764946,1762969861027,-1294.10266156,0.00040412,2]
[393764947,1762969861133,-354.25912127,0.00040412,2]
[393764948,1762969861143,-2832.1223688,0.00040412,2]
[393764949,1762969861152,-1546.3002703,0.00040412,2]
[393764950,1762969861162,-1047.21388752,0.00040412,2]
[393764951,1762969861171,-5274.8750515,0.00040412,2]
[393764952,1762969861180,-352.628809,0.00040412,2]
[393764953,1762969861190,-2496.87660152,0.00040412,2]
[393764954,1762969861199,-2749.40027915,0.00040412,2]
[393764955,1762969861209,-153.87776918,0.00040412,2]
[393764956,1762969861219,-1705.91253806,0.00040412,2]
[393764957,1762969861229,-253.3724917,0.00040412,2]
[393764958,1762969861238,-500.0,0.00040412,2]
[393764959,1762969861253,-1282.76829539,0.00040412,2]
[393764960,1762969861268,-247.71099425,0.00040412,2]
[393764961,1762969861277,-1059.27017844,0.00040412,2]
[393764962,1762969861287,-554.53238325,0.00040412,2]
[393764963,1762969861296,-9388.56187958,0.00040412,2]
[393764964,1762969861306,-1333.85253421,0.00040412,2]
[393764965,1762969861315,-3477.45231879,0.00040412,2]
[393764966,1762969861325,-2233.29229178,0.00040412,2]
[393764967,1762969861334,-760.19231871,0.00040412,2]
[393764968,1762969861343,-1951.96461222,0.00040412,2]
[393764969,1762969861353,-187.15958503,0.00040412,2]
[393764970,1762969861362,-643.0,0.00040412,2]
[393764971,1762969861372,-986.93507899,0.00040412,2]
[393764972,1762969861381,-582.69731679,0.00040412,2]
[393764973,1762969861390,-1866.29619738,0.00040412,2]
[393764974,1762969861400,-3295.05732571,0.00040412,2]
[393764975,1762969861410,-178.31934603,0.00040412,2]
[393764976,1762969861419,-7392.21098945,0.00040412,2]
[393764977,1762969861428,-550.0,0.00040412,2]
[393764978,1762969861437,-1025.45953823,0.00040412,2]
[393764979,1762969861447,-232.66481029,0.00040412,2]
[393764980,1762969861456,-176.57356218,0.00040412,2]
[393764981,1762969861466,-381.43600614,0.00040412,2]
[393764982,1762969861475,-1493.34300068,0.00040412,2]
[393764983,1762969861486,-1050.08359027,0.00040412,2]
[393764984,1762969861495,-1196.38881329,0.00040412,2]
[393764985,1762969861504,-1102.40413666,0.00040412,2]
[393764986,1762969861513,-409.34167925,0.00040412,2]
[393764987,1762969861522,-1507.57039605,0.00040412,2]
[393764988,1762969861531,-2479.66268022,0.00040412,2]
[393764989,1762969861542,-877.98690133,0.00040412,2]
[393764990,1762969861551,-206.29001731,0.00040412,2]
[393764991,1762969861560,-287.59582794,0.00040412,2]
[393764992,1762969861572,-5783.50250068,0.00040412,2]
[393764993,1762969861586,-4657.57226198,0.00040412,2]
[393764994,1762969861595,-1052.12354667,0.00040412,2]
[393764995,1762969861604,-2209.62854302,0.00040412,2]
[393764996,1762969861613,-891.1895807,0.00040412,2]
[393764997,1762969861624,-468.41038498,0.00040412,2]
[393764998,1762969861633,-150.0,0.00040412,2]
[393764999,1762969861642,-160.0,0.00040412,2]
[393765000,1762969861653,-202.87701545,0.00040412,2]
[393765001,1762969861664,-755.32185448,0.00040412,2]
[393765002,1762969861674,-4266.0,0.00040412,2]
[393765003,1762969861683,-2271.2808642,0.00040412,2]
[393765004,1762969861693,-151.84129604,0.00040412,2]
[393765005,1762969861702,-3360.96459826,0.00040412,2]
[393765006,1762969861714,-583.0,0.00040412,2]
[393765007,1762969861724,-166.11911,0.00040412,10]
[393765008,1762969861734,-185.0,0.00040412,10]
[393765009,1762969861743,-173268.28553829,0.00040412,7]
[393765010,1762969861754,-6000.0,0.00040412,7]
[393765011,1762969861763,-300.0,0.00040412,15]
[393765012,1762969861773,-2327.05619801,0.00040412,10]
[393765013,1762969861782,-2353.89904709,0.00040412,10]
[393765014,1762969861793,-6257448.77305743,0.00040412,7]
[393765015,1762969862154,-103.92667954,0.00040412,7]
[393765016,1762969862165,-5351.20794315,0.00040412,7]
[393765017,1762969862235,-755.23951326,0.00040412,7]
[393765018,1762969862246,-2900.0,0.00040412,7]
[393765019,1762969862256,-456.63,0.00040412,7]
[393765020,1762969862293,-4280.57174714,0.00040412,7]
[393765021,1762969862304,-21098.35489774,0.00040412,7]
[393765022,1762969862315,-450.624667,0.00040412,7]
[393765023,1762969924912,300.0,0.00040412,30]
[393765024,1762969925501,311.1,0.00040412,30]
[393765025,1762969926105,322.6107,0.00040412,30]
[393765026,1762969926708,334.5472959,0.00040412,30]
[393765027,1762969927260,200.0,0.00040412,30]
[393765028,1762969927301,346.92554585,0.00040412,30]
[393765029,1762969927874,207.4,0.00040412,30]
[393765030,1762969927909,346.92554585,0.00040412,30]
[393765031,1762969928531,207.4,0.00040412,30]
[393765032,1762969928981,50.70632877,0.0002659,120]
[393765033,1762969929021,144.29367123,0.0002659,120]
[393765034,1762969929087,195.0,0.00025379,120]
[393765035,1762969929188,195.0,0.00030016,120]
[393765036,1762969930190,218.73829698,0.00040412,30]
[393765037,1762969933063,200.0,0.00040412,30]
[393765038,1762969933700,200.0,0.00040412,30]
[393765039,1762969934028,151.0,0.00040412,30]
[393765040,1762969934635,151.0,0.00040412,30]
[393765041,1762969935286,151.0,0.00040412,30]
[393765042,1762969935904,151.0,0.00040412,30]
[393765043,1762969939693,200.0,0.00040412,30]
[393765044,1762969940313,207.4,0.00040412,30]
[393765045,1762969940937,215.0738,0.00040412,30]
[393765046,1762969941550,223.0315306,0.00040412,30]
[393765047,1762969942192,223.0315306,0.00040412,30]
[393765050,1762970039158,391.38,0.00013699,2]
[393765051,1762970163497,200.0,0.00040412,30]
[393765053,1762970224793,159.20089731,0.00040412,30]
[393765054,1762970341085,-391.38,0.00020187,2]
[393765055,1762970341115,-195.0,0.00021197,2]
[393765056,1762970341144,-250.0,0.00022206,2]
[393765057,1762970341172,-195.0,0.00022206,2]
[393765058,1762970341205,-250.0,0.00023002,2]
[393765059,1762970341236,-500.0,0.00025816,2]
[393765060,1762970341266,-250.0,0.00025988,2]
[393765061,1762970341295,-500.0,0.00026585,2]
[393765062,1762970341323,-391.38,0.00026676,2]
[393765063,1762970341352,-524.61822093,0.00030674,20]
[393765064,1762970341380,-500.0,0.00030674,2]
[393765065,1762970341408,-478.56668374,0.00031065,2]
[393765066,1762970461585,200.0,0.00040438,30]
[393765067,1762970520512,338.67182555,0.0003,2]
[393765068,1762970520537,152.65617445,0.0003,2]
[393765069,1762970520558,91.95321875,0.0003,2]
[393765070,1762970752408,153.72105551,0.00031065,2]
[393765071,1762970758495,478.56668374,0.00032842,2]
[393765072,1762970761163,200.0,0.00040438,30]
[393765073,1762970965087,-507.08234434,0.00032965,2]
[393765081,1762971032363,-1585.10498767,0.0003301,2]
[393765082,1762971032472,-523.23501233,0.0003301,2]
[393765083,1762971032484,-478.56668374,0.00033064,2]
[393765084,1762971032495,-391.38,0.00033165,2]
[393765085,1762971032508,-478.30421149,0.00033165,2]
[393765086,1762971032579,-21.69578851,0.00033165,2]
[393765087,1762971032590,-388.51245984,0.00033165,2]
[393765088,1762971032601,-300.0,0.00033165,60]
[393765089,1762971032613,-250.0,0.00033165,2]
[393765090,1762971032623,-209.36418828,0.00033165,2]
[393765091,1762971032634,-1063.58721616,0.00033202,3]
[393765092,1762971032647,-536.41278384,0.00033202,3]
[393765093,1762971032659,-300.0,0.00033203,60]
[393765094,1762971032670,-300.0,0.00033203,60]
[393765095,1762971032681,-250.0,0.00033236,2]
[393765096,1762971032692,-209.36418828,0.00033282,2]
[393765097,1762971032702,-337.0,0.00033393,3]
[393765098,1762971032712,-478.56668374,0.00033394,2]
[393765099,1762971032723,-372.0,0.00033398,3]
[393765100,1762971032735,-2000.0,0.000334,2]
[393765101,1762971032745,-209.36418828,0.000334,2]
[393765102,1762971032756,-500.0,0.00033453,2]
[393765103,1762971032767,-7086.08,0.00034,2]
[393765104,1762971032777,-150.99,0.00034,2]
[393765105,1762971032788,-322.45,0.00034,2]
[393765106,1762971032798,-2354.96061767,0.00034129,2]
[393765107,1762971032809,-166.66,0.00034397,30]
[393765108,1762971032820,-200.0,0.00034875,2]
[393765109,1762971032831,-202.78592358,0.00034899,120]
[393765110,1762971032841,-200.0,0.00035112,7]
[393765111,1762971032852,-166.66,0.00035121,30]
[393765112,1762971032863,-550.0,0.000353,2]
[393765113,1762971032873,-3744.72859446,0.000353,2]
[393765114,1762971032894,-284.72413551,0.000353,2]
[393765115,1762971032907,-1016.66647208,0.000353,2]
[393765116,1762971032924,-1060.88079795,0.000353,2]
[393765117,1762971032934,-151.0,0.00035301,2]
[393765118,1762971032945,-151.0,0.00035301,2]
[393765119,1762971032955,-151.0,0.00035301,2]
[393765120,1762971032969,-151.0,0.00035301,2]
[393765121,1762971032979,-151.0,0.00035301,2]
[393765122,1762971032991,-151.0,0.00035301,2]
[393765123,1762971033002,-151.0,0.00035301,2]
[393765124,1762971033012,-151.0,0.00035301,2]
[393765125,1762971033023,-151.0,0.00035301,2]
[393765126,1762971033035,-151.0,0.00035301,2]
[393765127,1762971033047,-151.0,0.00035301,2]
[393765128,1762971033057,-151.0,0.00035301,2]
[393765129,1762971033068,-151.0,0.00035301,2]
[393765130,1762971033079,-151.0,0.00035301,2]
[393765131,1762971033312,-151.0,0.00035301,2]
[393765132,1762971033330,-151.0,0.00035301,2]
[393765133,1762971033342,-151.0,0.00035301,2]
[393765134,1762971033352,-151.0,0.00035301,2]
[393765135,1762971033362,-151.0,0.00035301,2]
[393765136,1762971033372,-173.18881178,0.00035301,2]
[393765137,1762971033381,-200.0,0.00035322,2]
[393765138,1762971033391,-200.0,0.00035355,120]
[393765139,1762971033401,-200.0,0.00035447,7]
[393765140,1762971033410,-200.0,0.00035464,2]
[393765141,1762971033420,-200.0,0.00035504,2]
[393765142,1762971033429,-979.022,0.00035504,42]
[393765143,1762971033438,-5531.79722614,0.0003554,2]
[393765144,1762971033447,-200.0,0.00035725,2]
[393765145,1762971033457,-392.56,0.00035796,2]
[393765146,1762971033466,-800.0,0.00035811,3]
[393765147,1762971033475,-200.0,0.00035836,2]
[393765148,1762971033484,-166.66,0.00035845,30]
[393765149,1762971033494,-200.0,0.00035874,2]
[393765150,1762971033503,-200.0,0.00035877,7]
[393765151,1762971033512,-5516.0,0.000361,3]
[393765152,1762971033522,-203.0,0.00036164,2]
[393765153,1762971033531,-1937.71758442,0.00036219,2]
[393765154,1762971033540,-509.3844798,0.00036272,2]
[393765155,1762971033550,-437.88304545,0.00036372,60]
[393765156,1762971033559,-312.0,0.00036384,2]
[393765157,1762971033569,-1000.0,0.00036386,30]
[393765158,1762971033579,-1000.0,0.00036386,30]
[393765159,1762971033588,-599.70626753,0.00036414,2]
[393765160,1762971033597,-200.0,0.00036451,2]
[393765161,1762971033607,-250.0,0.00036482,2]
[393765162,1762971033616,-300.0,0.00036482,60]
[393765163,1762971033625,-1000.0,0.00036499,2]
[393765164,1762971033634,-263.0,0.00036563,2]
[393765165,1762971033644,-166.66,0.00036569,30]
[393765166,1762971033655,-152.0,0.00036638,3]
[393765167,1762971033663,-3063.91158776,0.00036646,2]
[393765168,1762971033675,-4450.27841224,0.00036646,2]
[393765169,1762971033684,-200.0,0.00036649,2]
[393765170,1762971033694,-3643.28,0.00036672,2]
[393765171,1762971033704,-150.0,0.0003677,2]
[393765172,1762971033714,-1000.0,0.00036825,2]
[393765173,1762971033723,-500.0,0.00036882,2]
[393765174,1762971033732,-5516.0,0.000369,5]
[393765175,1762971033742,-200.0,0.00036903,7]
[393765176,1762971033752,-200.0,0.00036983,2]
[393765177,1762971033761,-181.4544356,0.00037,2]
[393765178,1762971033771,-199.32,0.00037036,2]
[393765179,1762971033780,-200.0,0.00037073,120]
[393765180,1762971033789,-1817.0,0.000371,2]
[393765181,1762971033799,-2174.5594,0.00037288,10]
[393765182,1762971033808,-166.66,0.00037294,30]
[393765183,1762971033818,-200.0,0.00037303,2]
[393765184,1762971033827,-200.0,0.00037513,7]
[393765185,1762971033836,-166.88,0.00037672,60]
[393765186,1762971033845,-200.0,0.00037684,7]
[393765187,1762971033855,-200.0,0.00037704,120]
[393765188,1762971033864,-166.88,0.00037772,60]
[393765189,1762971033873,-166.88,0.00037872,60]
[393765190,1762971033883,-152.0,0.00037882,4]
[393765191,1762971033893,-166.88325274,0.00037972,60]
[393765192,1762971033902,-179.0,0.00038,30]
[393765193,1762971033912,-166.66,0.00038018,30]
[393765194,1762971033921,-200.0,0.00038044,120]
[393765195,1762971033931,-200.0,0.00038055,2]
[393765196,1762971033941,-2004.91939236,0.00038055,10]
[393765197,1762971033950,-2000.0,0.000381,2]
[393765198,1762971033963,-200.0,0.00038171,2]
[393765199,1762971033972,-200.0,0.00038187,120]
[393765200,1762971033981,-200.0,0.0003824,2]
[393765201,1762971033994,-172.12226942,0.000389,120]
[393765202,1762971034006,-1980.01,0.00039,2]
[393765203,1762971034015,-2000.0,0.00039,2]
[393765204,1762971034025,-2000.0,0.00039,2]
[393765205,1762971034035,-2010.96,0.00039,2]
[393765206,1762971034044,-2000.0,0.00039,2]
[393765207,1762971034054,-179.0,0.00039,30]
[393765208,1762971034063,-152.0,0.00039126,5]
[393765209,1762971034073,-1009.46563839,0.000394,7]
[393765210,1762971034082,-6662.0,0.00039546,2]
[393765211,1762971034091,-560.0,0.00039546,2]
[393765212,1762971034100,-52.84516057,0.00039546,2]
[393765215,1762971038278,-2090.15483943,0.00039546,2]
[393765216,1762971038289,-391.38,0.00039654,2]
[393765217,1762971038299,-11242.9677,0.00039838,2]
[393765218,1762971038310,-153.0,0.00039902,120]
[393765219,1762971038320,-153.0,0.00039902,120]
[393765220,1762971038330,-153.0,0.00039902,120]
[393765221,1762971038340,-153.0,0.00039902,120]
[393765222,1762971038351,-153.0,0.00039903,120]
[393765223,1762971038361,-153.0,0.00039903,120]
[393765224,1762971038372,-153.0,0.00039903,120]
[393765225,1762971038382,-153.0,0.00039911,120]
[393765226,1762971038392,-153.0,0.00039911,120]
[393765227,1762971038403,-153.0,0.00039911,120]
[393765228,1762971038412,-153.0,0.00039911,120]
[393765229,1762971038423,-153.0,0.00039912,120]
[393765230,1762971038433,-153.0,0.00039912,120]
[393765231,1762971038443,-153.0,0.00039912,120]
[393765232,1762971038453,-153.0,0.00039919,120]
[393765233,1762971038463,-153.0,0.00039919,120]
[393765234,1762971038472,-153.0,0.00039919,120]
[393765235,1762971038483,-153.0,0.0003992,120]
[393765236,1762971038494,-153.0,0.0003992,120]
[393765237,1762971038503,-153.0,0.0003992,120]
[393765238,1762971038513,-2500.0,0.00039938,2]
[393765239,1762971038523,-1000.0,0.00039938,2]
[393765240,1762971038533,-1784.56500542,0.00039938,15]
[393765241,1762971038543,-28603.08765291,0.00039938,15]
[393765242,1762971038553,-152.09451112,0.00039938,2]
[393765243,1762971038563,-187.21740559,0.00039938,15]
[393765244,1762971038573,-1316.0,0.0003995,2]
[393765245,1762971038583,-574.0,0.0003995,2]
[393765246,1762971038593,-3426.0,0.0003995,2]
[393765247,1762971038607,-608.0,0.0003995,2]
[393765248,1762971038617,-1597.0,0.0003995,2]
[393765249,1762971038627,-820.0,0.0003995,2]
[393765250,1762971038638,-813.0,0.0003995,2]
[393765251,1762971038648,-1274.0,0.0003995,2]
[393765252,1762971038658,-1784.56500537,0.00039982,15]
[393765253,1762971038668,-28603.08765284,0.00039982,15]
[393765254,1762971038678,-1000.0,0.0004,2]
[393765255,1762971038688,-198.79951,0.0004001,2]
[393765256,1762971038697,-152.09451107,0.00040018,28]
[393765257,1762971038707,-1784.56500537,0.00040027,15]
[393765258,1762971038717,-28603.08765284,0.00040027,15]
[393765259,1762971038727,-40235.3706741,0.00040028,4]
[393765260,1762971038737,-201176.853371,0.00040038,4]
[393765261,1762971038748,-112267.914423,0.00040038,4]
[393765262,1762971038757,-500.0,0.00040038,30]
[393765263,1762971038767,-9355.65953521,0.00040043,4]
[393765264,1762971038777,-420000.0,0.00040048,2]
[393765265,1762971038787,-1784.56500537,0.00040071,15]
[393765266,1762971038801,-28603.08765284,0.00040071,15]
[393765267,1762971038811,-9355.65953521,0.00040084,4]
[393765268,1762971038821,-152.09451107,0.00040098,28]
[393765269,1762971038831,-172.12226942,0.000401,120]
[393765270,1762971038840,-9355.65953521,0.00040102,4]
[393765271,1762971038850,-1651.0,0.00040112,5]
[393765272,1762971038860,-1784.56500537,0.00040116,15]
[393765273,1762971038871,-28603.08765284,0.00040116,15]
[393765274,1762971038881,-9355.65953521,0.00040126,4]
[393765275,1762971038891,-2500.0,0.00040139,14]
[393765276,1762971038901,-2500.0,0.00040148,14]
[393765277,1762971038911,-500.0,0.00040148,30]
[393765278,1762971038921,-1784.56500537,0.0004016,15]
[393765279,1762971038931,-28603.08765284,0.0004016,15]
[393765280,1762971038940,-18711.3190704,0.00040168,4]
[393765281,1762971038951,-152.09451107,0.00040178,28]
[393765282,1762971038966,-926.23623688,0.00040179,30]
[393765283,1762971038976,-500.0,0.00040192,2]
[393765284,1762971038986,-9355.65953521,0.00040192,4]
[393765285,1762971038998,-759.86755151,0.00040195,7]
[393765286,1762971039008,-9355.65953521,0.00040202,4]
[393765287,1762971039019,-1784.56500537,0.00040205,15]
[393765288,1762971039029,-28603.08765284,0.00040205,15]
[393765289,1762971039041,-9355.65953521,0.00040209,4]
[393765290,1762971039051,-198.79952,0.0004021,3]
[393765291,1762971039061,-5800.0,0.00040211,14]
[393765292,1762971039071,-1000.0,0.00040212,2]
[393765293,1762971039081,-24361.3816,0.00040212,2]
[393765294,1762971039091,-5800.0,0.0004022,14]
[393765295,1762971039101,-9355.65953521,0.00040226,4]
[393765296,1762971039112,-5800.0,0.00040228,14]
[393765297,1762971039122,-9355.65953521,0.00040235,4]
[393765298,1762971039132,-5800.0,0.00040237,14]
[393765299,1762971039142,-5800.0,0.00040245,14]
[393765300,1762971039152,-1784.56500537,0.00040249,15]
[393765301,1762971039167,-28603.08765284,0.00040249,15]
[393765302,1762971039177,-9355.65953521,0.00040251,4]
[393765303,1762971039188,-18711.3190704,0.00040253,4]
[393765304,1762971039198,-5800.0,0.00040254,14]
[393765305,1762971039208,-152.09451107,0.00040258,28]
[393765306,1762971039219,-9355.65953521,0.00040259,4]
[393765307,1762971039229,-5800.0,0.00040262,14]
[393765308,1762971039239,-46778.297676,0.00040263,4]
[393765309,1762971039251,-500.0,0.00040272,2]
[393765310,1762971039261,-151.88338379,0.00040272,2]
[393765311,1762971039271,-500.0,0.00040273,20]
[393765312,1762971039281,-343.6702126,0.00040273,20]
[393765313,1762971039291,-432.40917561,0.00040273,20]
[393765314,1762971039301,-500.0,0.00040273,20]
[393765315,1762971039311,-500.0,0.00040273,20]
[393765316,1762971039322,-500.0,0.00040273,20]
[393765317,1762971039331,-151.6174951,0.00040273,20]
[393765318,1762971039341,-500.0,0.00040273,20]
[393765319,1762971039355,-500.0,0.00040273,20]
[393765320,1762971039365,-500.0,0.00040273,20]
[393765321,1762971039375,-500.0,0.00040273,20]
[393765322,1762971039385,-176.0,0.00040273,20]
[393765323,1762971039395,-500.0,0.00040273,20]
[393765324,1762971039404,-500.0,0.00040273,20]
[393765325,1762971039414,-500.0,0.00040273,20]
[393765326,1762971039423,-500.0,0.00040273,20]
[393765327,1762971039433,-500.0,0.00040273,20]
[393765328,1762971039442,-317.59593302,0.00040273,20]
[393765329,1762971039452,-500.0,0.00040273,20]
[393765330,1762971039461,-500.0,0.00040273,20]
[393765331,1762971039471,-500.0,0.00040273,20]
[393765332,1762971039481,-500.0,0.00040273,20]
[393765333,1762971039491,-500.0,0.00040273,20]
[393765334,1762971039501,-500.0,0.00040273,20]
[393765335,1762971039511,-500.0,0.00040273,20]
[393765336,1762971039522,-500.0,0.00040273,20]
[393765337,1762971039532,-500.0,0.00040273,20]
[393765338,1762971039541,-500.0,0.00040273,20]
[393765339,1762971039555,-500.0,0.00040273,20]
[393765340,1762971039565,-467.69910793,0.00040273,20]
[393765341,1762971039575,-284.92,0.00040273,20]
[393765342,1762971039585,-500.0,0.00040273,20]
[393765343,1762971039595,-500.0,0.00040273,20]
[393765344,1762971039604,-500.0,0.00040273,20]
[393765345,1762971039614,-500.0,0.00040273,20]
[393765346,1762971039624,-226.58,0.00040273,20]
[393765347,1762971039633,-500.0,0.00040273,20]
[393765348,1762971039643,-500.0,0.00040273,20]
[393765349,1762971039652,-500.0,0.00040273,20]
[393765350,1762971039661,-500.0,0.00040273,20]
[393765351,1762971039672,-500.0,0.00040273,20]
[393765352,1762971039681,-500.0,0.00040273,20]
[393765353,1762971039691,-500.0,0.00040273,20]
[393765354,1762971039701,-500.0,0.00040273,20]
[393765355,1762971039711,-500.0,0.00040273,20]
[393765356,1762971039720,-500.0,0.00040273,20]
[393765357,1762971039730,-500.0,0.00040273,20]
[393765358,1762971039742,-500.0,0.00040273,20]
[393765359,1762971039752,-331.00897495,0.00040273,20]
[393765360,1762971039761,-500.0,0.00040273,20]
[393765361,1762971039770,-500.0,0.00040273,2]
[393765362,1762971039781,-500.0,0.00040273,2]
[393765363,1762971039791,-500.0,0.00040273,2]
[393765364,1762971039801,-500.0,0.00040273,20]
[393765365,1762971039812,-500.0,0.00040273,20]
[393765366,1762971039821,-500.0,0.00040273,20]
[393765367,1762971039831,-500.0,0.00040273,20]
[393765368,1762971039841,-500.0,0.00040273,20]
[393765369,1762971039851,-500.0,0.00040273,20]
[393765370,1762971039861,-500.0,0.00040273,20]
[393765371,1762971039870,-500.0,0.00040273,20]
[393765372,1762971039880,-500.0,0.00040273,20]
[393765373,1762971039890,-500.0,0.00040273,20]
[393765374,1762971039900,-500.0,0.00040273,20]
[393765375,1762971039910,-500.0,0.00040273,20]
[393765376,1762971039920,-500.0,0.00040273,20]
[393765377,1762971039929,-500.0,0.00040273,20]
[393765378,1762971039939,-500.0,0.00040273,10]
[393765379,1762971039948,-500.0,0.00040273,10]
[393765380,1762971039960,-500.0,0.00040273,10]
[393765381,1762971039970,-835.36,0.00040273,20]
[393765382,1762971039980,-835.36,0.00040273,20]
[393765383,1762971039990,-835.36,0.00040273,20]
[393765384,1762971040002,-835.36,0.00040273,20]
[393765385,1762971040011,-500.0,0.00040273,20]
[393765386,1762971040022,-500.0,0.00040273,20]
[393765387,1762971040031,-500.0,0.00040273,20]
[393765388,1762971040044,-500.0,0.00040273,20]
[393765389,1762971040054,-500.0,0.00040273,20]
[393765390,1762971040064,-500.0,0.00040273,20]
[393765391,1762971040074,-500.0,0.00040273,20]
[393765392,1762971040084,-558.25505738,0.00040273,20]
[393765393,1762971040094,-500.0,0.00040273,20]
[393765394,1762971040104,-375.76994771,0.00040273,20]
[393765395,1762971040114,-698.82,0.00040273,20]
[393765396,1762971040123,-698.82,0.00040273,20]
[393765397,1762971040143,-698.82,0.00040273,20]
[393765398,1762971040154,-500.0,0.00040273,20]
[393765399,1762971040164,-500.0,0.00040273,20]
[393765401,1762971040174,-500.0,0.00040273,20]
[393765402,1762971040184,-619.84,0.00040273,20]
[393765403,1762971040194,-619.84,0.00040273,20]
[393765404,1762971040204,-619.84,0.00040273,20]
[393765405,1762971040215,-500.0,0.00040273,20]
[393765406,1762971040224,-619.84,0.00040273,20]
[393765407,1762971040234,-500.0,0.00040273,20]
[393765408,1762971040243,-500.0,0.00040273,20]
[393765409,1762971040254,-500.0,0.00040273,20]
[393765410,1762971040265,-500.0,0.00040273,20]
[393765411,1762971040276,-500.0,0.00040273,20]
[393765413,1762971040286,-500.0,0.00040273,20]
[393765414,1762971040296,-186.09609615,0.00040273,20]
[393765415,1762971040306,-500.0,0.00040273,20]